bitfinex-derivatives/quotes_ETHF0:USTF0_20250911
["timestamp","ask_amount","ask_price","bid_price","bid_amount"]
[1757604051577,1.0,4430.4,4430.3,0.5713]
[1757604051774,1.0,4430.4,4430.3,0.2788]
[1757604051974,1.0,4429.9,4429.8,40.8]
[1757604052481,1.0,4430.4,4430.3,0.2788]
[1757604052681,1.0,4430.4,4430.3,0.5713]
[1757604053284,1.0,4430.4,4430.3,0.2788]
[1757604054090,0.7168,4430.4,4430.3,0.999]
[1757604055387,0.4309,4430.8,4430.4,0.4277]
[1757604055682,0.7168,4430.8,4430.7,0.999]
[1757604056081,0.7168,4430.8,4430.7,41.799]
[1757604056483,0.7168,4430.8,4430.7,41.3713]
[1757604056672,0.7168,4430.8,4430.7,41.0788]
[1757604056878,0.7168,4430.8,4430.7,40.8]
[1757604057483,0.7168,4430.8,4430.3,0.231]
[1757604057684,0.8404,4430.5,4430.4,0.2757]
[1757604057884,1.1173,4430.5,4430.4,0.9801]
[1757604058083,0.8537,4431.0,4430.9,0.556]
[1757604058287,0.231,4431.0,4430.9,0.556]
[1757604058481,0.231,4431.0,4430.9,0.9801]
[1757604059483,0.4076,4431.2,4430.9,0.9801]
[1757604059690,0.8537,4431.5,4431.4,0.556]
[1757604059889,0.8537,4431.5,4431.4,41.7801]
[1757604060188,0.8537,4431.5,4431.4,41.356]
[1757604060383,0.8537,4431.5,4431.4,40.8]
[1757604060684,4.8537,4431.5,4431.4,40.8]
[1757604060890,5.07936001,4431.5,4430.4,0.6551]
[1757604061090,1.1173,4430.5,4430.4,0.2757]
[1757604061488,0.6758,4430.5,4430.4,41.7801]
[1757604061678,0.4076,4430.9,4430.4,41.7801]
[1757604061884,3.2078,4431.0,4430.7,0.556]
[1757604062194,3.2078,4431.0,4430.5,0.1614]
[1757604062195,3.4388,4431.0,4430.9,0.9801]
[1757604062387,3.2078,4431.5,4431.3,0.556]
[1757604062588,3.2078,4431.5,4431.4,0.9801]
[1757604063190,3.2078,4431.5,4431.4,41.7801]
[1757604063688,3.6154,4431.5,4431.4,41.7801]
[1757604063889,3.78,4431.5,4431.4,41.0757]
[1757604064287,3.78,4431.5,4431.4,40.8]
[1757604064797,3.78,4431.5,4430.7,0.231]
[1757604064996,0.6758,4430.8,4430.7,1.2111]
[1757604065397,0.6758,4430.8,4430.7,42.0111]
[1757604065694,0.6758,4430.8,4430.7,41.356]
[1757604065895,0.6758,4430.8,4430.7,41.0757]
[1757604068786,3.2078,4430.9,4430.7,41.4998]
[1757604069093,3.2078,4430.9,4430.8,0.9801]
[1757604069593,0.231,4431.4,4430.8,0.787]
[1757604069896,1.1837,4431.4,4431.3,0.556]
[1757604070100,1.1837,4431.4,4431.3,0.9801]
[1757604070500,3.2078,4431.5,4431.3,0.9801]
[1757604070700,3.2078,4431.5,4430.5,0.1614]
[1757604070701,3.2078,4431.5,4431.4,0.9801]
[1757604071102,3.6154,4431.5,4431.4,41.7801]
[1757604071402,3.78,4431.5,4431.4,40.8]
[1757604071800,4.011,4431.5,4431.4,40.8]
[1757604072898,0.9527,4430.9,4430.8,0.556]
[1757604073304,0.9527,4430.9,4430.8,41.356]
[1757604073492,0.9527,4430.9,4430.8,41.7801]
[1757604075002,0.6386,4431.1,4431.0,0.556]
[1757604075196,1.1837,4431.1,4430.8,40.8]
[1757604075401,0.4076,4430.8,4430.5,0.6551]
[1757604075605,0.9527,4430.6,4430.5,0.787]
[1757604075909,0.9527,4430.6,4430.5,41.587]
[1757604076208,0.9068,4430.8,4430.7,0.556]
[1757604076394,0.9068,4430.8,4430.7,0.9801]
[1757604076908,3.3724,4431.0,4430.7,0.9801]
[1757604077108,0.231,4430.9,4430.8,0.4241]
[1757604077310,0.9068,4430.9,4430.8,0.9801]
[1757604077608,1.1837,4430.9,4430.5,40.8]
[1757604077808,0.9527,4430.6,4430.5,40.8]
[1757604079207,1.1837,4430.6,4430.5,40.8]
[1757604079998,0.231,4430.6,4430.5,41.3855]
[1757604080598,0.231,4430.6,4430.5,41.2241]
[1757604081205,3.4388,4431.0,4430.5,40.9614]
[1757604081406,3.4388,4431.0,4430.9,0.9801]
[1757604081615,3.707,4431.0,4430.9,0.9801]
[1757604081812,4.5561,4431.0,4430.9,0.556]
[1757604082108,4.5561,4431.0,4430.9,0.9801]
[1757604082708,4.5561,4431.0,4430.9,0.556]
[1757604083513,4.5561,4431.0,4430.9,0.9801]
[1757604084004,4.1146,4431.0,4430.9,0.9801]
[1757604084404,3.4388,4431.0,4430.9,0.9801]
[1757604084804,4.1146,4431.0,4430.9,0.9801]
[1757604085314,4.5561,4431.0,4430.9,0.556]
[1757604085811,4.5561,4431.0,4430.9,0.9801]
[1757604086608,4.3915,4431.0,4430.9,0.9801]
[1757604087109,4.1146,4431.0,4430.9,0.9801]
[1757604087308,3.4388,4431.0,4430.9,0.9801]
[1757604087612,4.1033,4431.0,4430.9,0.9801]
[1757604088513,4.5294,4431.0,4430.9,0.556]
[1757604088905,4.5294,4431.0,4430.5,40.8]
[1757604089106,0.3972,4430.9,4430.8,0.278]
[1757604089305,2.17166355,4430.9,4430.8,0.278]
[1757604090112,0.3972,4430.8,4430.5,40.8]
[1757604090306,0.9296,4430.6,4430.5,40.8]
[1757604090713,0.9296,4430.6,4430.5,41.1981]
[1757604091317,0.9296,4430.6,4430.5,40.8]
[1757604092516,0.9296,4430.6,4430.5,41.1981]
[1757604092809,0.23,4430.7,4430.6,0.9366]
[1757604093004,0.6272,4430.7,4430.6,0.9366]
[1757604093407,0.23,4430.7,4430.6,0.9366]
[1757604093608,3.2078,4431.0,4430.6,0.5385]
[1757604093814,0.23,4430.9,4430.8,0.9366]
[1757604096422,3.3724,4431.5,4430.9,0.3981]
[1757604096619,0.23,4431.4,4431.0,0.1343]
[1757604096812,0.4973,4431.4,4431.3,0.9366]
[1757604097112,1.1596,4431.4,4431.3,0.278]
[1757604098907,0.2673,4430.7,4430.6,0.9061]
[1757604099214,0.9296,4430.7,4430.6,0.9366]
[1757604099408,0.9296,4430.7,4430.6,0.5385]
[1757604099615,0.3972,4430.7,4430.6,0.9366]
[1757604100010,0.6645,4430.7,4430.6,0.9366]
[1757604100317,0.9296,4430.7,4430.6,0.5385]
[1757604101111,0.9296,4430.7,4430.6,0.9366]
[1757604101310,0.9296,4430.7,4430.6,0.5385]
[1757604101511,0.9296,4430.7,4430.6,0.9366]
[1757604102317,0.9296,4430.7,4430.5,40.8]
[1757604102318,0.3972,4430.6,4430.5,40.8]
[1757604103011,0.3972,4430.6,4430.5,41.1981]
[1757604103212,3.8661,4431.0,4430.9,0.9366]
[1757604103410,4.1312,4431.0,4430.9,0.5385]
[1757604103719,4.5284,4431.0,4430.9,0.5385]
[1757604104111,4.5284,4431.0,4430.9,0.9366]
[1757604104312,0.3972,4430.9,4430.5,40.8]
[1757604104516,0.6623,4430.9,4430.8,0.278]
[1757604104815,0.9296,4430.9,4430.8,0.278]
[1757604105223,3.5988,4431.0,4430.5,40.8]
[1757604105516,0.3972,4429.4,4429.0,2.01506872]
[1757604105718,0.3972,4428.9,4428.5,2.8026842]
[1757604105918,0.2673,4428.2,4428.1,2.69116872]
[1757604106128,0.6645,4428.2,4428.1,0.9366]
[1757604106421,0.6645,4428.2,4428.1,41.7366]
[1757604109522,0.6645,4428.2,4428.1,41.078]
[1757604111128,0.6645,4428.2,4428.1,41.4761]
[1757604111319,0.6645,4428.2,4428.1,41.078]
[1757604111626,0.6645,4428.2,4428.1,41.4761]
[1757604111823,3.2078,4428.4,4428.1,0.9366]
[1757604112122,0.9296,4428.2,4428.1,0.278]
[1757604112417,0.9296,4428.2,4427.0,0.3769]
[1757604112418,0.9296,4428.2,4427.1,0.3981]
[1757604112623,0.23,4428.3,4427.1,0.5385]
[1757604112624,0.9296,4427.2,4427.1,0.5385]
[1757604113016,0.161,4427.0,4426.9,40.8]
[1757604113217,0.5582,4427.0,4426.9,40.8]
[1757604113419,0.7882,4427.0,4426.9,40.8]
[1757604114521,0.6272,4427.0,4426.9,41.1981]
[1757604114822,3.4378,4427.4,4427.3,0.9366]
[1757604115227,3.835,4427.4,4427.3,0.9366]
[1757604115522,4.1023,4427.4,4427.3,0.9366]
[1757604115719,3.8723,4427.4,4427.3,0.9366]
[1757604116723,0.6272,4427.6,4427.5,0.9366]
[1757604116923,3.605,4427.9,4427.6,0.3981]
[1757604117224,3.2078,4427.9,4427.8,0.3981]
[1757604117431,3.4378,4427.9,4427.8,0.9344]
[1757604117925,3.2078,4428.4,4427.8,0.9344]
[1757604118119,3.2078,4428.4,4428.3,0.5363]
[1757604118314,3.9067,4428.4,4428.3,0.9536]
[1757604118529,3.9067,4428.4,4428.3,41.7536]
[1757604120430,3.2078,4428.4,4428.3,41.7536]
[1757604120630,3.6299,4428.4,4428.3,41.7536]
[1757604121529,3.6299,4428.4,4427.3,0.4173]
[1757604121530,0.4221,4428.3,4427.3,0.4173]
[1757604121732,0.6989,4427.4,4427.3,0.9536]
[1757604122123,0.6989,4427.4,4427.3,41.3363]
[1757604122522,0.6989,4427.4,4427.3,41.7536]
[1757604123224,0.4221,4427.8,4427.3,41.7536]
[1757604123519,0.4221,4427.8,4427.4,0.4173]
[1757604123723,0.4221,4427.8,4427.7,0.2738]
[1757604123724,0.9583,4427.8,4427.7,0.2738]
[1757604124324,0.9583,4427.8,4427.7,0.9536]
[1757604124534,0.9583,4427.8,4427.7,0.5363]
[1757604125931,0.6531,4428.0,4427.8,0.4173]
[1757604126128,0.9299,4428.0,4427.9,0.9536]
[1757604126429,1.3596,4428.0,4427.9,0.5363]
[1757604126636,0.9375,4428.0,4427.5,0.6483]
[1757604126829,0.6989,4427.6,4427.5,0.9536]
[1757604127332,0.9583,4427.6,4427.5,0.9536]
[1757604127535,0.9583,4427.6,4427.5,0.5363]
[1757604129029,0.2768,4427.4,4427.3,40.8]
[1757604129335,0.6989,4427.4,4427.3,40.8]
[1757604130034,0.6989,4427.4,4426.8,0.231]
[1757604130426,0.6989,4427.4,4426.9,40.8]
[1757604130627,0.9583,4427.3,4427.2,0.2738]
[1757604131230,3.2078,4427.8,4427.2,0.9536]
[1757604131430,0.23,4427.7,4427.3,0.4173]
[1757604131626,0.7662,4427.7,4427.6,0.5363]
[1757604132231,0.9583,4427.7,4427.6,0.9536]
[1757604132432,0.6989,4427.7,4427.6,0.9536]
[1757604133639,0.9583,4427.7,4427.6,0.5363]
[1757604134039,0.9583,4427.7,4427.6,0.2738]
[1757604134739,0.6989,4427.7,4427.6,0.9536]
[1757604134932,0.4221,4427.7,4427.6,0.9536]
[1757604135531,0.9583,4427.6,4427.0,0.4173]
[1757604135736,0.5924,4427.0,4426.9,40.8]
[1757604138936,0.6989,4426.6,4426.5,0.9536]
[1757604139440,3.9067,4427.2,4427.1,0.5363]
[1757604140542,3.2078,4427.2,4427.1,0.9536]
[1757604140747,0.23,4427.3,4427.2,0.9536]
[1757604140944,0.9289,4427.3,4427.2,0.9536]
[1757604142046,1.1883,4427.3,4427.2,0.9536]
[1757604142346,1.1883,4427.3,4427.2,0.5363]
[1757604142942,0.23,4427.3,4427.2,0.9536]
[1757604143148,1.1883,4427.3,4427.2,0.9536]
[1757604143440,1.1883,4427.3,4426.5,40.9343]
[1757604143441,3.974,4427.3,4426.5,41.3516]
[1757604143642,0.5362,4426.6,4426.5,40.8]
[1757604143845,0.9583,4426.6,4426.5,40.8]
[1757604145144,0.6989,4426.6,4426.5,40.8]
[1757604145340,0.6989,4426.6,4426.5,41.2173]
[1757604146640,0.23,4426.9,4426.8,0.9536]
[1757604147148,0.23,4427.0,4426.9,0.4173]
[1757604147350,0.23,4427.0,4426.9,0.9539]
[1757604147547,0.6488,4427.0,4426.9,0.9539]
[1757604147948,0.907,4427.0,4426.9,0.9539]
[1757604148245,1.3154,4427.0,4426.9,0.2714]
[1757604148448,1.0854,4427.0,4426.9,0.2714]
[1757604148949,0.677,4427.0,4426.9,0.9391]
[1757604149154,0.4188,4427.7,4427.3,0.5342]
[1757604149353,0.677,4427.7,4427.6,0.5342]
[1757604149651,0.9329,4427.7,4427.6,0.5342]
[1757604152352,0.5141,4427.7,4426.7,0.4049]
[1757604152552,0.4188,4427.4,4426.7,0.63078]
[1757604152857,0.9329,4426.8,4426.7,0.5342]
[1757604153353,0.9329,4426.8,4426.7,0.2714]
[1757604154449,0.9329,4426.8,4426.5,40.8]
[1757604154450,0.5141,4426.8,4426.5,40.8]
[1757604154656,0.5141,4426.6,4426.5,40.8]
[1757604154855,0.9329,4426.6,4426.5,40.8]
[1757604155456,1.0854,4426.5,4426.4,0.2714]
[1757604155854,0.4188,4426.9,4426.4,41.7391]
[1757604156057,0.5141,4426.9,4426.8,0.5342]
[1757604156256,0.9329,4426.9,4426.8,0.5342]
[1757604156656,0.9329,4426.9,4426.8,0.2714]
[1757604158660,0.5141,4426.9,4426.4,40.8]
[1757604158964,0.677,4426.5,4426.4,41.2049]
[1757604159859,0.2559,4426.1,4425.7,2.01506872]
[1757604160058,0.9329,4426.1,4426.0,0.2714]
[1757604160259,0.5141,4425.7,4425.6,2.54926872]
[1757604160556,0.5141,4425.7,4425.0,6.1573842]
[1757604160557,0.4188,4425.6,4425.1,2.41996872]
[1757604160763,0.4188,4425.6,4425.0,3.2078]
[1757604160764,0.9329,4425.1,4425.0,3.4792]
[1757604161061,1.0854,4424.5,4424.4,0.2714]
[1757604162050,0.4188,4424.4,4423.6,40.8]
[1757604162257,0.2582,4423.8,4423.7,0.2714]
[1757604162458,0.9329,4423.8,4423.7,0.5342]
[1757604162657,0.9329,4423.8,4423.7,0.2714]
[1757604162867,0.4188,4423.7,4423.6,40.8]
[1757604163660,0.4188,4423.7,4422.8,0.1718349]
[1757604163969,0.4188,4423.3,4422.8,0.1718349]
[1757604164159,0.677,4423.0,4422.9,40.8]
[1757604164555,0.677,4423.0,4422.9,41.2049]
[1757604165064,3.466,4423.4,4423.3,0.2714]
[1757604165265,3.466,4423.4,4423.3,0.9391]
[1757604165559,3.2078,4423.4,4423.3,0.9391]
[1757604165861,3.6266,4423.9,4423.4,0.4049]
[1757604166052,3.8848,4423.9,4423.8,0.9391]
[1757604166363,3.8848,4423.9,4423.3,0.4049]
[1757604166364,4.3717,4423.9,4423.3,0.4049]
[1757604166769,4.3717,4423.9,4423.8,0.2714]
[1757604166956,4.3717,4423.9,4423.8,0.5342]
[1757604167152,3.2078,4424.4,4423.8,0.5342]
[1757604167353,3.8848,4424.4,4424.3,0.2714]
[1757604167553,4.3717,4424.4,4423.8,0.4049]
[1757604168152,4.3717,4424.4,4423.5,0.1225]
[1757604168153,0.4188,4424.3,4423.2,0.4049]
[1757604168358,0.4188,4424.3,4423.2,0.6359]
[1757604168867,3.4388,4424.4,4423.2,0.6359]
[1757604169057,3.66485,4424.4,4423.2,0.6359]
[1757604169262,0.677,4424.3,4424.2,0.2714]
[1757604169469,1.1639,4424.3,4424.2,0.2714]
[1757604171162,1.1639,4424.3,4424.2,0.5342]
[1757604172767,0.9329,4424.3,4424.2,0.5342]
[1757604172969,1.1639,4424.3,4424.2,0.9391]
[1757604173275,0.908,4424.3,4424.2,0.9391]
[1757604173570,1.1639,4424.3,4424.2,0.5342]
[1757604174068,1.1639,4424.3,4424.2,0.2714]
[1757604174571,1.1639,4424.3,4423.8,0.4049]
[1757604174964,0.7451,4424.3,4424.2,0.2714]
[1757604175558,3.2078,4424.4,4424.3,0.4049]
[1757604175761,0.231,4424.5,4424.4,0.5342]
[1757604175962,0.231,4424.5,4424.4,0.9391]
[1757604176158,0.908,4424.5,4424.4,41.7391]
[1757604177762,36.2737,4425.0,4424.5,0.3869]
[1757604177973,3.9817,4425.0,4424.9,0.5043]
[1757604178165,4.4663,4425.0,4424.9,0.5043]
[1757604179466,0.5304,4424.5,4424.4,40.8]
[1757604180468,0.875,4423.9,4423.8,0.2477]
[1757604180663,0.3714,4423.8,4423.0,3.7416]
[1757604180870,0.875,4423.1,4423.0,0.5043]
[1757604181372,0.875,4423.1,4423.0,41.3043]
[1757604181571,0.875,4423.1,4423.0,41.6912]
[1757604181959,0.3714,4423.4,4423.0,41.3043]
[1757604182166,0.25,4423.2,4423.1,0.8912]
[1757604182471,0.6214,4423.2,4423.1,0.8912]
[1757604183471,3.2078,4423.5,4423.2,0.3869]
[1757604183679,3.2078,4423.5,4423.4,0.8912]
[1757604183863,0.6024,4423.8,4423.4,0.8912]
[1757604184059,3.7382,4424.0,4423.8,0.3869]
[1757604184263,0.231,4423.9,4423.8,0.8912]
[1757604184467,3.5792,4424.0,4423.8,0.5043]
[1757604184664,3.2078,4424.0,4423.9,0.8912]
[1757604185072,0.231,4424.4,4424.3,0.8912]
[1757604185668,0.6024,4424.4,4424.3,41.6912]
[1757604185870,0.6024,4424.4,4424.3,40.8]
[1757604186369,0.3714,4424.4,4424.3,41.1869]
[1757604186574,0.3714,4424.4,4424.3,40.8]
[1757604186867,0.6024,4424.4,4424.3,40.8]
[1757604187270,0.6024,4424.4,4423.8,0.3869]
[1757604187773,1.106,4424.4,4423.9,40.8]
[1757604187965,0.25,4424.0,4423.9,40.8]
[1757604188162,0.6214,4424.0,4423.9,40.8]
[1757604188365,0.6214,4424.0,4423.9,41.1869]
[1757604188666,0.481,4424.4,4424.3,0.2477]
[1757604189073,0.7346,4424.4,4424.3,0.2477]
[1757604189279,1.106,4424.4,4424.3,0.8912]
[1757604189874,0.8524,4424.4,4424.3,0.8912]
[1757604190173,0.3714,4424.3,4423.9,41.1869]
[1757604190370,0.5304,4424.0,4423.9,40.8]
[1757604190570,3.9692,4424.0,4423.9,40.8]
[1757604190777,0.875,4423.2,4423.1,0.5043]
[1757604191168,0.875,4423.2,4423.1,41.3043]
[1757604192187,0.875,4423.2,4423.1,41.6912]
[1757604194272,0.875,4423.2,4423.1,41.3043]
[1757604195370,0.875,4423.2,4423.1,41.6912]
[1757604195566,0.875,4423.2,4423.1,41.3043]
[1757604195770,0.875,4423.2,4423.1,40.8]
[1757604195979,0.5036,4422.9,4422.8,0.1718349]
[1757604196277,0.875,4422.9,4422.8,0.6761349]
[1757604196576,3.5792,4423.5,4422.9,0.3869]
[1757604196781,0.231,4423.2,4423.1,0.8912]
[1757604197077,0.2536,4423.1,4423.0,0.2477]
[1757604197275,0.875,4423.1,4423.0,0.2477]
[1757604197674,3.7382,4423.5,4423.0,0.6166]
[1757604197985,3.8292,4423.5,4423.4,0.5043]
[1757604198174,3.2078,4423.5,4423.4,0.8912]
[1757604198577,3.5792,4423.5,4423.4,0.8912]
[1757604198870,3.8292,4423.5,4423.4,0.8912]
[1757604199168,4.2418,4423.5,4423.4,0.5043]
[1757604199374,4.2418,4423.5,4423.4,0.8912]
[1757604199974,4.2418,4423.5,4423.4,0.5043]
[1757604200376,3.8292,4423.5,4423.4,0.8912]
[1757604200681,3.2078,4423.5,4423.4,0.8912]
[1757604201178,0.3714,4424.2,4423.8,0.3869]
[1757604201370,3.8292,4424.3,4424.2,0.8912]
[1757604201678,4.3138,4424.3,4424.2,0.8912]
[1757604201879,4.3138,4424.3,4424.2,0.5043]
[1757604202272,3.8292,4424.3,4424.2,0.8912]
[1757604202475,3.2078,4424.8,4424.3,0.3869]
[1757604202681,3.2078,4424.8,4424.7,0.5043]
[1757604202682,4.0828,4424.8,4424.7,0.5043]
[1757604202876,4.0828,4424.8,4424.7,0.2477]
[1757604203074,3.8292,4424.8,4424.7,0.8912]
[1757604203275,3.8292,4424.8,4424.7,0.5043]
[1757604203583,0.875,4424.8,4424.7,0.5043]
[1757604204080,0.875,4424.8,4424.7,0.8912]
[1757604204277,3.2078,4425.3,4424.7,0.5043]
[1757604204278,3.5792,4425.3,4424.7,0.5043]
[1757604204485,0.3714,4425.9,4425.4,0.3869]
[1757604204674,0.7346,4425.8,4425.7,0.5043]
[1757604204976,1.106,4425.8,4425.7,0.5043]
[1757604205575,1.106,4425.8,4425.7,0.2477]
[1757604206475,1.106,4425.8,4425.2,0.231]
[1757604207281,1.034,4425.0,4424.7,0.231]
[1757604207582,1.034,4425.0,4424.9,40.8]
[1757604208483,1.034,4425.0,4424.9,0.5113]
[1757604209073,1.034,4425.0,4424.8,40.8]
[1757604209074,0.3986,4424.9,4424.8,40.8]
[1757604209290,0.5263,4424.8,4424.7,0.231]
[1757604209586,0.9249,4424.8,4424.7,0.231]
[1757604210083,0.5487,4424.5,4424.4,40.8]
[1757604210581,0.5487,4424.5,4424.3,3.2078]
[1757604210784,0.5263,4424.4,4424.0,0.231]
[1757604210991,0.6557,4424.1,4424.0,0.7423]
[1757604211282,0.6557,4424.1,4424.0,41.5423]
[1757604211472,0.3986,4424.4,4424.1,0.4026]
[1757604211670,0.3986,4424.4,4424.0,41.5423]
[1757604211671,3.8635,4424.9,4424.8,0.5113]
[1757604211876,3.8635,4424.9,4424.8,0.9139]
[1757604212879,3.2078,4424.9,4424.8,0.9139]
[1757604213181,3.8635,4424.9,4424.8,0.9139]
[1757604213981,3.6064,4424.9,4424.8,0.9139]
[1757604214780,3.8635,4424.9,4424.8,0.5113]
[1757604214972,4.1327,4424.9,4424.8,0.5113]
[1757604215577,4.1327,4424.9,4424.8,0.9139]
[1757604216184,3.2078,4424.9,4424.8,0.9139]
[1757604216379,3.8635,4425.7,4425.6,0.5113]
[1757604216881,4.1327,4425.7,4425.0,0.231]
[1757604217083,0.9249,4424.8,4424.7,3.2078]
[1757604217281,0.8058,4424.5,4424.4,0.7423]
[1757604217476,0.1501,4425.0,4424.4,0.7423]
[1757604217682,0.9249,4425.0,4424.9,0.5113]
[1757604217876,1.075,4425.0,4424.5,41.2026]
[1757604218083,0.9249,4424.7,4424.5,40.8]
[1757604218382,0.3986,4424.6,4424.5,41.031]
[1757604219487,3.2078,4425.2,4424.5,41.031]
[1757604219488,3.6064,4425.2,4425.0,0.4026]
[1757604219779,3.6064,4425.2,4424.9,0.5113]
[1757604219780,3.6064,4425.2,4425.1,0.5113]
[1757604219989,3.8635,4425.2,4425.1,0.9139]
[1757604220382,0.6557,4425.2,4425.1,0.9139]
[1757604221087,3.8374,4425.7,4425.2,0.4026]
[1757604221285,4.0945,4425.7,4425.6,0.2539]
[1757604221486,4.3637,4425.7,4425.6,0.2539]
[1757604221681,1.1559,4425.7,4425.2,0.4026]
[1757604221880,1.1559,4425.7,4424.9,0.2539]
[1757604221881,0.6764,4425.0,4424.9,0.2539]
[1757604222081,0.9249,4424.8,4424.7,0.231]
[1757604222283,0.9249,4424.6,4424.5,40.8]
[1757604222581,0.9249,4424.3,4424.2,0.4849]
[1757604222788,0.9249,4424.3,4424.2,0.231]
[1757604223791,0.9249,4424.3,4424.2,0.4849]
[1757604225086,0.3986,4424.9,4424.2,0.9139]
[1757604226086,0.1501,4425.0,4424.2,0.9139]
[1757604226389,0.3986,4424.9,4424.2,0.9139]
[1757604226589,0.1501,4425.0,4424.2,0.9139]
[1757604226982,0.3986,4424.9,4424.2,0.9139]
[1757604227385,0.9249,4424.3,4424.2,0.5113]
[1757604227692,0.9249,4424.3,4424.2,0.2539]
[1757604229294,0.9249,4424.3,4424.2,0.5113]
[1757604229489,0.9249,4424.3,4423.7,2.01506872]
[1757604229490,0.6764,4424.0,4423.7,2.01506872]
[1757604229699,3.2078,4423.8,4423.6,0.4026]
[1757604229996,3.2078,4423.8,4423.6,0.6565]
[1757604230189,3.2078,4423.8,4423.7,0.6565]
[1757604230390,3.4398,4423.8,4423.7,0.6565]
[1757604230990,3.4398,4423.8,4423.7,0.4026]
[1757604232088,7.4398,4423.8,4423.7,0.4026]
[1757604232983,7.4398,4423.8,4423.5,0.5522]
[1757604233586,7.4398,4423.8,4423.6,0.4026]
[1757604233788,7.4398,4423.8,4423.5,0.1496]
[1757604233990,7.4398,4423.8,4423.6,0.4026]
[1757604235801,7.4398,4423.8,4423.5,0.1496]
[1757604236299,0.232,4423.7,4423.6,0.4026]
[1757604239702,7.2078,4423.8,4423.6,0.6565]
[1757604239903,0.232,4423.7,4423.6,0.6457]
[1757604240308,7.2078,4423.8,4423.6,0.2539]
[1757604240497,7.2078,4423.8,4423.7,0.6452]
[1757604240801,3.4398,4423.8,4423.7,0.6452]
[1757604241696,3.2078,4423.8,4423.7,0.6452]
[1757604241898,3.4398,4423.8,4423.7,0.6452]
[1757604242190,3.2078,4423.8,4423.7,0.9169]
[1757604242590,3.4398,4423.8,4423.7,0.9169]
[1757604243400,3.2078,4423.8,4423.7,0.9169]
[1757604243597,3.4398,4423.8,4423.7,0.9169]
[1757604245706,3.2078,4423.8,4423.7,0.9169]
[1757604245902,3.4398,4423.8,4423.7,0.9169]
[1757604246309,3.4398,4423.8,4423.7,0.3918]
[1757604247294,3.4398,4423.8,4423.7,0.9169]
[1757604248604,3.2078,4423.8,4423.7,0.9169]
[1757604248809,3.4398,4423.8,4423.7,0.9169]
[1757604250204,3.4398,4423.8,4423.7,0.6452]
[1757604250406,3.4398,4423.8,4423.7,0.3918]
[1757604251803,3.2078,4423.8,4423.7,0.6452]
[1757604252106,3.4398,4423.8,4423.7,0.9169]
[1757604253008,3.4398,4423.8,4423.7,0.3918]
[1757604256913,3.4398,4423.8,4423.7,0.6452]
[1757604257522,3.4398,4423.8,4423.7,0.3918]
[1757604258109,4.04220533,4423.8,4423.7,0.3918]
[1757604258712,3.81020533,4423.8,4423.7,0.3918]
[1757604258913,4.04120533,4423.8,4423.7,0.3918]
[1757604262011,4.04120533,4423.8,4423.7,0.6452]
[1757604262717,3.81020533,4423.8,4423.7,0.9169]
[1757604262917,4.04120533,4423.8,4423.7,0.9169]
[1757604264216,4.04120533,4423.8,4423.7,0.6452]
[1757604264413,4.04120533,4423.8,4423.7,0.9169]
[1757604266213,3.81020533,4423.8,4423.7,0.9169]
[1757604266515,4.04120533,4423.8,4423.7,0.9169]
[1757604267521,3.4388,4423.8,4423.7,0.9169]
[1757604269614,3.4388,4423.8,4423.7,0.3918]
[1757604270518,3.4388,4423.8,4423.7,0.898]
[1757604271920,3.4388,4423.8,4423.7,0.3918]
[1757604272423,3.4388,4423.8,4423.7,0.6364]
[1757604273227,4.04164549,4423.8,4423.7,0.6364]
[1757604273724,4.04164549,4423.8,4423.7,0.3918]
[1757604274528,4.04164549,4423.8,4423.7,0.6364]
[1757604274826,4.04164549,4423.8,4423.7,0.898]
[1757604276020,3.81064549,4423.8,4423.7,0.6364]
[1757604276217,4.04164549,4423.8,4423.7,0.6364]
[1757604278530,4.04164549,4423.8,4423.7,0.898]
[1757604279824,3.81064549,4423.8,4423.7,0.898]
[1757604280024,4.04164549,4423.8,4423.7,0.898]
[1757604280830,4.04164549,4423.8,4423.7,0.3918]
[1757604281021,0.22606,4423.7,4423.0,0.1496]
[1757604281220,7.61727419,4423.1,4422.8,0.1718349]
[1757604281424,7.61727419,4423.1,4423.0,0.1459]
[1757604281628,8.45114902,4423.1,4423.0,0.1459]
[1757604282324,5.28896637,4423.1,4423.0,0.1459]
[1757604283028,5.28896637,4423.1,4423.0,0.512]
[1757604283225,4.04167483,4423.1,4423.0,0.7566]
[1757604284031,4.04167483,4423.1,4423.0,1.0182]
[1757604286537,3.81067483,4423.1,4423.0,1.0182]
[1757604286732,4.04167483,4423.1,4423.0,1.0182]
[1757604286933,3.81067483,4423.1,4423.0,1.0182]
[1757604287134,4.04167483,4423.1,4423.0,1.0182]
[1757604287330,3.4388,4423.1,4423.0,1.0182]
[1757604287636,3.2078,4423.1,4423.0,1.0182]
[1757604287836,3.4388,4423.1,4423.0,1.0182]
[1757604289230,3.2078,4423.1,4423.0,1.0182]
[1757604289538,4.03900609,4423.1,4423.0,0.7566]
[1757604289926,4.03900609,4423.1,4423.0,0.512]